[Event "Titled Tuesday Blitz March 28 Early 2023"]
[White "Qashashvili, Alexandre"]
[Black "Vivas Zamora, Fabian Ernesto"]
[WhiteFideId "13600842"]
[BlackFideId "3902480"]
[WhiteElo "2405"]
[BlackElo "2262"]
[Result "1/2-1/2"]
[Round "04"]
[TimeControl "180+2"]
[Date "2023.03.28"]
[WhiteClock "0:00:04"]
[BlackClock "0:00:13"]

1. e4 {[%clk 0:03:00]}  e5 {[%clk 0:02:59]} 2. Nf3 {[%clk 0:02:56]}  Nc6 {[%clk 0:02:56]} 3. Nc3 {[%clk 0:02:55]}  Nf6 {[%clk 0:02:52]} 4. d4 {[%clk 0:02:55]}  exd4 {[%clk 0:02:53]} 5. Nxd4 {[%clk 0:02:55]}  Nxe4 {[%clk 0:02:52]} 6. Nxc6 {[%clk 0:02:53]}  Nxc3 {[%clk 0:02:52]} 7. Nxd8 {[%clk 0:02:54]}  Nxd1 {[%clk 0:02:53]} 8. Nxf7 {[%clk 0:02:54]}  Kxf7 {[%clk 0:02:52]} 9. Kxd1 {[%clk 0:02:53]}  d5 {[%clk 0:02:53]} 10. Bd3 {[%clk 0:02:50]}  Bd6 {[%clk 0:02:39]} 11. Bg5 {[%clk 0:02:50]}  h6 {[%clk 0:02:38]} 12. Bh4 {[%clk 0:02:50]}  g5 {[%clk 0:02:28]} 13. Bg3 {[%clk 0:02:50]}  Bxg3 {[%clk 0:02:27]} 14. hxg3 {[%clk 0:02:48]}  h5 {[%clk 0:02:26]} 15. Kd2 {[%clk 0:02:45]}  Kf6 {[%clk 0:02:22]} 16. Be2 {[%clk 0:02:40]}  h4 {[%clk 0:02:12]} 17. gxh4 {[%clk 0:02:39]}  gxh4 {[%clk 0:02:12]} 18. Rh2 {[%clk 0:02:36]}  Bf5 {[%clk 0:02:01]} 19. Rah1 {[%clk 0:02:35]}  Rag8 {[%clk 0:01:57]} 20. g3 {[%clk 0:02:19]}  hxg3 {[%clk 0:01:42]} 21. Rxh8 {[%clk 0:02:19]}  g2 {[%clk 0:01:37]} 22. Rg1 {[%clk 0:01:23]}  Rxh8 {[%clk 0:01:36]} 23. Rxg2 {[%clk 0:01:23]}  Be4 {[%clk 0:01:31]} 24. f3 {[%clk 0:01:22]}  Bg6 {[%clk 0:01:30]} 25. Bd3 {[%clk 0:01:20]}  Bxd3 {[%clk 0:01:26]} 26. Kxd3 {[%clk 0:01:19]}  c5 {[%clk 0:01:24]} 27. a4 {[%clk 0:01:14]}  b6 {[%clk 0:01:23]} 28. b3 {[%clk 0:01:14]}  Rh3 {[%clk 0:01:20]} 29. Ke2 {[%clk 0:01:12]}  Kf5 {[%clk 0:01:20]} 30. Rg7 {[%clk 0:01:09]}  a5 {[%clk 0:01:06]} 31. Rb7 {[%clk 0:01:00]}  Rh6 {[%clk 0:01:06]} 32. Kd3 {[%clk 0:00:54]}  Ke5 {[%clk 0:01:03]} 33. Rf7 {[%clk 0:00:52]}  Rh3 {[%clk 0:01:01]} 34. Ke3 {[%clk 0:00:46]}  c4 {[%clk 0:00:55]} 35. bxc4 {[%clk 0:00:43]}  dxc4 {[%clk 0:00:52]} 36. Rb7 {[%clk 0:00:37]}  Rh6 {[%clk 0:00:48]} 37. c3 {[%clk 0:00:36]}  Rf6 {[%clk 0:00:39]} 38. f4+ {[%clk 0:00:32]}  Rxf4 {[%clk 0:00:06]} 39. Rxb6 {[%clk 0:00:17]}  Rh4 {[%clk 0:00:05]} 40. Rb5+ {[%clk 0:00:15]}  Kd6 {[%clk 0:00:05]} 41. Rxa5 {[%clk 0:00:15]}  Rh3+ {[%clk 0:00:06]} 42. Kd4 {[%clk 0:00:15]}  Rh4+ {[%clk 0:00:06]} 43. Ke3 {[%clk 0:00:15]}  Rh3+ {[%clk 0:00:06]} 44. Kd2 {[%clk 0:00:16]}  Rh2+ {[%clk 0:00:06]} 45. Kc1 {[%clk 0:00:14]}  Kc6 {[%clk 0:00:03]} 46. Rb5 {[%clk 0:00:12]}  Ra2 {[%clk 0:00:02]} 47. Rb4 {[%clk 0:00:12]}  Kc5 {[%clk 0:00:03]} 48. Kb1 {[%clk 0:00:12]}  Rh2 {[%clk 0:00:03]} 49. Ka1 {[%clk 0:00:11]}  Rc2 {[%clk 0:00:03]} 50. Rb2 {[%clk 0:00:02]}  Rxc3 {[%clk 0:00:03]} 51. Ra2 {[%clk 0:00:03]}  Kb6 {[%clk 0:00:03]} 52. Kb2 {[%clk 0:00:04]}  Rb3+ {[%clk 0:00:03]} 53. Kc2 {[%clk 0:00:05]}  Rh3 {[%clk 0:00:04]} 54. a5+ {[%clk 0:00:05]}  Ka6 {[%clk 0:00:04]} 55. Ra4 {[%clk 0:00:05]}  Rh2+ {[%clk 0:00:04]} 56. Kc3 {[%clk 0:00:05]}  Rh3+ {[%clk 0:00:05]} 57. Kxc4 {[%clk 0:00:05]}  Rh4+ {[%clk 0:00:05]} 58. Kb3 {[%clk 0:00:06]}  Rh3+ {[%clk 0:00:06]} 59. Kb4 {[%clk 0:00:06]}  Rh4+ {[%clk 0:00:07]} 60. Ka3 {[%clk 0:00:07]}  Rh5 {[%clk 0:00:07]} 61. Ka2 {[%clk 0:00:06]}  Kb5 {[%clk 0:00:07]} 62. Ra3 {[%clk 0:00:06]}  Ka6 {[%clk 0:00:08]} 63. Kb3 {[%clk 0:00:05]}  Rh3+ {[%clk 0:00:08]} 64. Ka4 {[%clk 0:00:05]}  Rh4+ {[%clk 0:00:09]} 65. Kb3 {[%clk 0:00:06]}  Rh3+ {[%clk 0:00:10]} 66. Kb2 {[%clk 0:00:06]}  Rh2+ {[%clk 0:00:10]} 67. Kc1 {[%clk 0:00:06]}  Rh5 {[%clk 0:00:11]} 68. Kd2 {[%clk 0:00:07]}  Rc5 {[%clk 0:00:11]} 69. Kd3 {[%clk 0:00:06]}  Rh5 {[%clk 0:00:12]} 70. Kc4 {[%clk 0:00:06]}  Rh4+ {[%clk 0:00:12]} 71. Kc5 {[%clk 0:00:06]}  Rh5+ {[%clk 0:00:13]} 72. Kb4 {[%clk 0:00:07]}  Rg5 {[%clk 0:00:12]} 73. Rc3 {[%clk 0:00:06]}  Rb5+ {[%clk 0:00:13]} 74. Kc4 {[%clk 0:00:05]}  Rxa5 {[%clk 0:00:13]} 75. Kb4 {[%clk 0:00:04]}  Rh5 {[%clk 0:00:13]} 76. Rc4 {[%clk 0:00:04]}  Kb6 {[%clk 0:00:13]} 77. Re4 {[%clk 0:00:04]}  Rb5+ {[%clk 0:00:13]} 78. Kc4 {[%clk 0:00:04]} 1/2-1/2


[Site "https://www.chess.com"]

[Event "Titled Tuesday Blitz March 28 Early 2023"]
[White "Kiseleva, Arina"]
[Black "Van Osch, Mees"]
[WhiteFideId "4164989"]
[BlackFideId "1035967"]
[WhiteElo "1756"]
[BlackElo "2324"]
[Result "0-1"]
[Round "04"]
[TimeControl "180+2"]
[Date "2023.03.28"]
[WhiteClock "0:00:01"]
[BlackClock "0:00:08"]

1. d4 {[%clk 0:03:00]}  d6 {[%clk 0:02:56]} 2. Nf3 {[%clk 0:03:00]}  Nf6 {[%clk 0:02:52]} 3. c4 {[%clk 0:02:57]}  Bg4 {[%clk 0:02:52]} 4. Qb3 {[%clk 0:02:48]}  Qc8 {[%clk 0:02:32]} 5. h3 {[%clk 0:02:47]}  Bh5 {[%clk 0:02:30]} 6. g4 {[%clk 0:02:43]}  Bg6 {[%clk 0:02:28]} 7. Bg2 {[%clk 0:02:44]}  Nc6 {[%clk 0:02:28]} 8. Be3 {[%clk 0:02:26]}  e6 {[%clk 0:02:22]} 9. Nbd2 {[%clk 0:02:21]}  Be7 {[%clk 0:02:22]} 10. Nh4 {[%clk 0:02:18]}  Rb8 {[%clk 0:02:17]} 11. Nxg6 {[%clk 0:02:09]}  hxg6 {[%clk 0:02:18]} 12. Qa4 {[%clk 0:02:03]}  d5 {[%clk 0:02:13]} 13. cxd5 {[%clk 0:01:43]}  Nxd5 {[%clk 0:02:14]} 14. Bxd5 {[%clk 0:01:32]}  exd5 {[%clk 0:02:15]} 15. Nf3 {[%clk 0:01:31]}  b5 {[%clk 0:01:17]} 16. Qb3 {[%clk 0:01:22]}  Qxg4 {[%clk 0:00:42]} 17. hxg4 {[%clk 0:00:34]}  Rxh1+ {[%clk 0:00:43]} 18. Kd2 {[%clk 0:00:34]}  Rxa1 {[%clk 0:00:43]} 19. Qxd5 {[%clk 0:00:32]}  Nb4 {[%clk 0:00:43]} 20. Qe5 {[%clk 0:00:20]}  Rxa2 {[%clk 0:00:25]} 21. d5 {[%clk 0:00:20]}  Rd8 {[%clk 0:00:19]} 22. Bd4 {[%clk 0:00:09]}  Rxd5 {[%clk 0:00:17]} 23. Qxg7 {[%clk 0:00:09]}  c5 {[%clk 0:00:17]} 24. Qg8+ {[%clk 0:00:09]}  Kd7 {[%clk 0:00:17]} 25. Qxf7 {[%clk 0:00:08]}  cxd4 {[%clk 0:00:17]} 26. Qxg6 {[%clk 0:00:06]}  Rxb2+ {[%clk 0:00:16]} 27. Kd1 {[%clk 0:00:05]}  Rc5 {[%clk 0:00:12]} 28. Nd2 {[%clk 0:00:06]}  Ra2 {[%clk 0:00:10]} 29. Qe4 {[%clk 0:00:03]}  Ra1+ {[%clk 0:00:10]} 30. Nb1 {[%clk 0:00:04]}  Nd5 {[%clk 0:00:09]} 31. Kd2 {[%clk 0:00:03]}  Ra2+ {[%clk 0:00:08]} 32. Kd1 {[%clk 0:00:01]}  Nc3+ {[%clk 0:00:06]} 33. Nxc3 {[%clk 0:00:01]}  dxc3 {[%clk 0:00:07]} 34. Qd3+ {[%clk 0:00:01]}  Kc6 {[%clk 0:00:07]} 35. Qf3+ {[%clk 0:00:01]}  Rd5+ {[%clk 0:00:08]} 0-1


[Site "https://www.chess.com"]

[Event "Titled Tuesday Blitz March 28 Early 2023"]
[White "Ansh M Shah"]
[Black "EdmundPlayer"]
[WhiteFideId "25033379"]
[WhiteElo "2084"]
[BlackElo "2195"]
[Result "0-1"]
[Round "04"]
[TimeControl "180+2"]
[Date "2023.03.28"]
[WhiteClock "0:00:09"]
[BlackClock "0:00:43"]

1. d4 {[%clk 0:03:00]}  Nf6 {[%clk 0:02:48]} 2. c4 {[%clk 0:02:47]}  g6 {[%clk 0:02:48]} 3. h4 {[%clk 0:02:31]}  Bg7 {[%clk 0:02:36]} 4. Nc3 {[%clk 0:02:29]}  d5 {[%clk 0:02:35]} 5. h5 {[%clk 0:02:26]}  Nxh5 {[%clk 0:02:30]} 6. cxd5 {[%clk 0:02:19]}  c6 {[%clk 0:02:27]} 7. e4 {[%clk 0:02:19]}  cxd5 {[%clk 0:02:23]} 8. e5 {[%clk 0:02:20]}  Bf8 {[%clk 0:02:14]} 9. g4 {[%clk 0:02:18]}  Ng7 {[%clk 0:02:13]} 10. Bh6 {[%clk 0:02:14]}  Ne6 {[%clk 0:02:10]} 11. Bxf8 {[%clk 0:02:14]}  Nxf8 {[%clk 0:02:11]} 12. Qb3 {[%clk 0:02:11]}  e6 {[%clk 0:02:03]} 13. Nf3 {[%clk 0:02:04]}  Nc6 {[%clk 0:02:02]} 14. Bb5 {[%clk 0:02:02]}  Qb6 {[%clk 0:01:58]} 15. Bxc6+ {[%clk 0:02:02]}  bxc6 {[%clk 0:01:58]} 16. Qxb6 {[%clk 0:01:57]}  axb6 {[%clk 0:01:59]} 17. O-O-O {[%clk 0:01:50]}  Ba6 {[%clk 0:01:51]} 18. Rh6 {[%clk 0:01:42]}  c5 {[%clk 0:01:48]} 19. Rdh1 {[%clk 0:01:41]}  Rc8 {[%clk 0:01:45]} 20. a3 {[%clk 0:01:34]}  Ke7 {[%clk 0:01:41]} 21. Kd2 {[%clk 0:01:22]}  cxd4 {[%clk 0:01:40]} 22. Nxd4 {[%clk 0:01:21]}  Rc4 {[%clk 0:01:37]} 23. Ke3 {[%clk 0:01:16]}  Nd7 {[%clk 0:01:37]} 24. f4 {[%clk 0:01:16]}  g5 {[%clk 0:01:22]} 25. fxg5 {[%clk 0:01:07]}  Nxe5 {[%clk 0:01:22]} 26. R1h4 {[%clk 0:00:52]}  Rg8 {[%clk 0:01:17]} 27. Rxh7 {[%clk 0:00:25]}  Rxg5 {[%clk 0:01:16]} 28. Kf4 {[%clk 0:00:26]}  Ng6+ {[%clk 0:01:06]} 29. Kxg5 {[%clk 0:00:25]}  Nxh4 {[%clk 0:01:07]} 30. Nxe6 {[%clk 0:00:12]}  Nf3+ {[%clk 0:01:05]} 31. Kf5 {[%clk 0:00:11]}  Bc8 {[%clk 0:00:56]} 32. Nxd5+ {[%clk 0:00:09]}  Kd6 {[%clk 0:00:57]} 33. Nxb6 {[%clk 0:00:09]}  Bxe6+ {[%clk 0:00:55]} 34. Kf6 {[%clk 0:00:09]}  Rf4+ {[%clk 0:00:54]} 35. Kg7 {[%clk 0:00:09]}  Rxg4+ {[%clk 0:00:54]} 36. Kf8 {[%clk 0:00:09]}  f5 {[%clk 0:00:44]} 37. b4 {[%clk 0:00:09]}  Rg8# {[%clk 0:00:43]} 0-1


[Site "https://www.chess.com"]

[Event "Titled Tuesday Blitz March 28 Early 2023"]
[White "Buscar, Michael"]
[Black "Baruch, Liam"]
[WhiteFideId "2603616"]
[BlackFideId "14322064"]
[WhiteElo "2010"]
[BlackElo "2151"]
[Result "1-0"]
[Round "04"]
[TimeControl "180+2"]
[Date "2023.03.28"]
[WhiteClock "0:02:06"]
[BlackClock "0:01:05"]

1. Nf3 {[%clk 0:02:54]}  d5 {[%clk 0:02:59]} 2. b3 {[%clk 0:02:55]}  Nf6 {[%clk 0:02:59]} 3. Bb2 {[%clk 0:02:56]}  c5 {[%clk 0:02:59]} 4. e3 {[%clk 0:02:56]}  Nc6 {[%clk 0:03:00]} 5. c4 {[%clk 0:02:56]}  e6 {[%clk 0:02:56]} 6. cxd5 {[%clk 0:02:56]}  exd5 {[%clk 0:02:55]} 7. Be2 {[%clk 0:02:57]}  Bd6 {[%clk 0:02:54]} 8. O-O {[%clk 0:02:57]}  Bf5 {[%clk 0:02:53]} 9. d3 {[%clk 0:02:58]}  O-O {[%clk 0:02:52]} 10. a3 {[%clk 0:02:58]}  Rc8 {[%clk 0:02:52]} 11. Nbd2 {[%clk 0:02:57]}  Kh8 {[%clk 0:02:39]} 12. Qc2 {[%clk 0:02:51]}  Qc7 {[%clk 0:02:32]} 13. Rfe1 {[%clk 0:02:46]}  Rfe8 {[%clk 0:02:27]} 14. Nf1 {[%clk 0:02:43]}  Ne5 {[%clk 0:02:25]} 15. Ng3 {[%clk 0:02:36]}  Bg6 {[%clk 0:02:16]} 16. Rac1 {[%clk 0:02:30]}  Qe7 {[%clk 0:01:54]} 17. Qc3 {[%clk 0:02:17]}  Neg4 {[%clk 0:01:39]} 18. b4 {[%clk 0:02:10]}  Nxf2 {[%clk 0:01:22]} 19. Kxf2 {[%clk 0:02:08]}  Qxe3+ {[%clk 0:01:04]} 20. Kf1 {[%clk 0:02:08]}  Ng4 {[%clk 0:01:05]} 21. Qxg7# {[%clk 0:02:06]} 1-0


[Site "https://www.chess.com"]

[Event "Titled Tuesday Blitz March 28 Early 2023"]
[White "Necula, Iulian"]
[Black "Kosakowski, Jakub"]
[WhiteFideId "1232380"]
[BlackFideId "1185080"]
[WhiteElo "1790"]
[BlackElo "2488"]
[Result "0-1"]
[Round "04"]
[TimeControl "180+2"]
[Date "2023.03.28"]
[WhiteClock "0:00:10"]
[BlackClock "0:00:39"]

1. d4 {[%clk 0:03:00]}  Nf6 {[%clk 0:02:55]} 2. Nc3 {[%clk 0:03:00]}  d5 {[%clk 0:02:55]} 3. Bf4 {[%clk 0:03:00]}  e6 {[%clk 0:02:55]} 4. Nb5 {[%clk 0:03:00]}  Bb4+ {[%clk 0:02:55]} 5. c3 {[%clk 0:02:59]}  Ba5 {[%clk 0:02:55]} 6. a4 {[%clk 0:02:59]}  a6 {[%clk 0:02:53]} 7. b4 {[%clk 0:02:59]}  axb5 {[%clk 0:02:51]} 8. axb5 {[%clk 0:02:55]}  b6 {[%clk 0:02:13]} 9. bxa5 {[%clk 0:02:54]}  Rxa5 {[%clk 0:02:13]} 10. Rxa5 {[%clk 0:02:53]}  bxa5 {[%clk 0:02:14]} 11. Qa4 {[%clk 0:02:49]}  O-O {[%clk 0:02:11]} 12. Qxa5 {[%clk 0:02:42]}  Qe7 {[%clk 0:02:11]} 13. Qb4 {[%clk 0:02:28]}  Qd7 {[%clk 0:02:01]} 14. Nf3 {[%clk 0:02:23]}  Ne4 {[%clk 0:02:01]} 15. Ne5 {[%clk 0:02:18]}  Qe8 {[%clk 0:01:59]} 16. e3 {[%clk 0:02:00]}  c6 {[%clk 0:01:48]} 17. b6 {[%clk 0:01:52]}  f6 {[%clk 0:01:41]} 18. Nd3 {[%clk 0:01:47]}  e5 {[%clk 0:01:37]} 19. Bg3 {[%clk 0:01:43]}  exd4 {[%clk 0:01:35]} 20. Qxd4 {[%clk 0:01:37]}  Ba6 {[%clk 0:01:30]} 21. Be2 {[%clk 0:01:33]}  Nd7 {[%clk 0:01:29]} 22. O-O {[%clk 0:01:27]}  Bc4 {[%clk 0:01:29]} 23. Nf4 {[%clk 0:01:14]}  c5 {[%clk 0:01:29]} 24. Qd1 {[%clk 0:00:54]}  Nxc3 {[%clk 0:01:29]} 25. Qd2 {[%clk 0:00:52]}  Nxe2+ {[%clk 0:01:26]} 26. Nxe2 {[%clk 0:00:52]}  Qe6 {[%clk 0:01:18]} 27. b7 {[%clk 0:00:50]}  Qb6 {[%clk 0:01:18]} 28. b8=Q {[%clk 0:00:39]}  Nxb8 {[%clk 0:01:17]} 29. Rc1 {[%clk 0:00:32]}  Nc6 {[%clk 0:01:17]} 30. Nc3 {[%clk 0:00:32]}  Rd8 {[%clk 0:01:17]} 31. h4 {[%clk 0:00:28]}  d4 {[%clk 0:01:14]} 32. exd4 {[%clk 0:00:27]}  Nxd4 {[%clk 0:01:14]} 33. Qe3 {[%clk 0:00:23]}  Qb2 {[%clk 0:01:11]} 34. Kh2 {[%clk 0:00:22]}  Nf5 {[%clk 0:01:08]} 35. Qf4 {[%clk 0:00:18]}  Bf7 {[%clk 0:01:06]} 36. Qxf5 {[%clk 0:00:17]}  Qxc1 {[%clk 0:01:06]} 37. Ne4 {[%clk 0:00:16]}  c4 {[%clk 0:00:51]} 38. Nd6 {[%clk 0:00:16]}  Qd2 {[%clk 0:00:45]} 39. h5 {[%clk 0:00:13]}  Qd5 {[%clk 0:00:45]} 40. Qf4 {[%clk 0:00:12]}  Qxh5+ {[%clk 0:00:44]} 41. Bh4 {[%clk 0:00:12]}  g5 {[%clk 0:00:39]} 42. g4 {[%clk 0:00:09]}  Qxh4+ {[%clk 0:00:39]} 43. Kg2 {[%clk 0:00:10]}  gxf4 {[%clk 0:00:39]} 0-1


[Site "https://www.chess.com"]

[Event "Titled Tuesday Blitz March 28 Early 2023"]
[White "Turzo, Attila"]
[Black "Aanna12"]
[WhiteFideId "704954"]
[WhiteElo "2507"]
[BlackElo "2220"]
[Result "1-0"]
[Round "04"]
[TimeControl "180+2"]
[Date "2023.03.28"]
[WhiteClock "0:00:13"]
[BlackClock "0:00:01"]

1. e4 {[%clk 0:03:00]}  c5 {[%clk 0:02:57]} 2. Nc3 {[%clk 0:03:00]}  d6 {[%clk 0:02:56]} 3. f4 {[%clk 0:02:59]}  g6 {[%clk 0:02:53]} 4. Nf3 {[%clk 0:02:58]}  Bg7 {[%clk 0:02:53]} 5. Bb5+ {[%clk 0:02:58]}  Bd7 {[%clk 0:02:51]} 6. a4 {[%clk 0:02:58]}  Nc6 {[%clk 0:02:48]} 7. O-O {[%clk 0:02:58]}  a6 {[%clk 0:02:47]} 8. Bxc6 {[%clk 0:02:58]}  Bxc6 {[%clk 0:02:46]} 9. Qe1 {[%clk 0:02:54]}  e6 {[%clk 0:02:33]} 10. f5 {[%clk 0:02:52]}  Nf6 {[%clk 0:02:28]} 11. fxe6 {[%clk 0:02:39]}  fxe6 {[%clk 0:02:27]} 12. e5 {[%clk 0:02:40]}  dxe5 {[%clk 0:02:10]} 13. Nxe5 {[%clk 0:02:40]}  Rc8 {[%clk 0:02:09]} 14. Nxc6 {[%clk 0:02:20]}  Rxc6 {[%clk 0:02:08]} 15. Kh1 {[%clk 0:02:20]}  O-O {[%clk 0:02:07]} 16. d3 {[%clk 0:02:20]}  Ng4 {[%clk 0:01:57]} 17. h3 {[%clk 0:02:10]}  Nh6 {[%clk 0:01:34]} 18. Bxh6 {[%clk 0:02:07]}  Bxh6 {[%clk 0:01:32]} 19. Rxf8+ {[%clk 0:02:02]}  Qxf8 {[%clk 0:01:32]} 20. Qe2 {[%clk 0:02:02]}  Bg7 {[%clk 0:01:10]} 21. Ne4 {[%clk 0:02:01]}  Qf5 {[%clk 0:00:58]} 22. Rf1 {[%clk 0:01:58]}  Qe5 {[%clk 0:00:58]} 23. b3 {[%clk 0:01:43]}  Rc8 {[%clk 0:00:53]} 24. Re1 {[%clk 0:01:32]}  Qd5 {[%clk 0:00:48]} 25. Ng5 {[%clk 0:01:27]}  e5 {[%clk 0:00:47]} 26. Qe4 {[%clk 0:01:13]}  Qd4 {[%clk 0:00:42]} 27. Nf3 {[%clk 0:01:12]}  Qxe4 {[%clk 0:00:37]} 28. Rxe4 {[%clk 0:01:13]}  Re8 {[%clk 0:00:37]} 29. a5 {[%clk 0:01:10]}  Kf7 {[%clk 0:00:36]} 30. Kg1 {[%clk 0:01:08]}  h6 {[%clk 0:00:34]} 31. Kf1 {[%clk 0:00:59]}  Re6 {[%clk 0:00:34]} 32. Ke2 {[%clk 0:00:59]}  Ke7 {[%clk 0:00:34]} 33. b4 {[%clk 0:00:53]}  Kd6 {[%clk 0:00:21]} 34. Nd2 {[%clk 0:00:40]}  cxb4 {[%clk 0:00:19]} 35. Rxb4 {[%clk 0:00:40]}  Kc6 {[%clk 0:00:19]} 36. Nc4 {[%clk 0:00:37]}  Re7 {[%clk 0:00:16]} 37. Rb6+ {[%clk 0:00:36]}  Kd5 {[%clk 0:00:12]} 38. Rxg6 {[%clk 0:00:34]}  e4 {[%clk 0:00:12]} 39. Kd2 {[%clk 0:00:32]}  exd3 {[%clk 0:00:11]} 40. cxd3 {[%clk 0:00:33]}  Kc5 {[%clk 0:00:09]} 41. Rb6 {[%clk 0:00:29]}  Bd4 {[%clk 0:00:07]} 42. Rd6 {[%clk 0:00:20]}  Rf7 {[%clk 0:00:02]} 43. Rxh6 {[%clk 0:00:15]}  Rf2+ {[%clk 0:00:01]} 44. Ke1 {[%clk 0:00:15]}  Rxg2 {[%clk 0:00:01]} 45. Rb6 {[%clk 0:00:13]} 1-0


[Site "https://www.chess.com"]

[Event "Titled Tuesday Blitz March 28 Early 2023"]
[White "rionelG"]
[Black "Hirneise, Jens"]
[BlackFideId "24614734"]
[WhiteElo "2225"]
[BlackElo "2345"]
[Result "1-0"]
[Round "04"]
[TimeControl "180+2"]
[Date "2023.03.28"]
[WhiteClock "0:00:06"]
[BlackClock "0:00:07"]

1. e4 {[%clk 0:03:00]}  d5 {[%clk 0:02:57]} 2. exd5 {[%clk 0:03:00]}  Nf6 {[%clk 0:02:57]} 3. d4 {[%clk 0:03:00]}  Nxd5 {[%clk 0:02:56]} 4. c4 {[%clk 0:02:59]}  Nb6 {[%clk 0:02:55]} 5. Nc3 {[%clk 0:02:58]}  g6 {[%clk 0:02:55]} 6. Nf3 {[%clk 0:02:58]}  Bg7 {[%clk 0:02:55]} 7. Be2 {[%clk 0:02:57]}  O-O {[%clk 0:02:56]} 8. h3 {[%clk 0:02:56]}  Nc6 {[%clk 0:02:51]} 9. Be3 {[%clk 0:02:54]}  e5 {[%clk 0:02:38]} 10. d5 {[%clk 0:02:48]}  Ne7 {[%clk 0:02:36]} 11. O-O {[%clk 0:02:44]}  Nf5 {[%clk 0:02:35]} 12. c5 {[%clk 0:02:34]}  Nxe3 {[%clk 0:02:32]} 13. fxe3 {[%clk 0:02:32]}  Nd7 {[%clk 0:02:32]} 14. b4 {[%clk 0:02:29]}  a5 {[%clk 0:02:31]} 15. a3 {[%clk 0:02:29]}  e4 {[%clk 0:02:24]} 16. Nd4 {[%clk 0:02:28]}  axb4 {[%clk 0:02:20]} 17. axb4 {[%clk 0:02:27]}  Rxa1 {[%clk 0:02:21]} 18. Qxa1 {[%clk 0:02:27]}  Qg5 {[%clk 0:02:16]} 19. Qc1 {[%clk 0:02:19]}  Nf6 {[%clk 0:02:14]} 20. Kh1 {[%clk 0:01:52]}  Nxd5 {[%clk 0:02:13]} 21. Nxd5 {[%clk 0:01:40]}  Qxd5 {[%clk 0:02:13]} 22. Bc4 {[%clk 0:01:40]}  Qh5 {[%clk 0:02:08]} 23. Qc2 {[%clk 0:01:27]}  Qe5 {[%clk 0:01:56]} 24. Rf4 {[%clk 0:01:20]}  Kh8 {[%clk 0:01:45]} 25. Qxe4 {[%clk 0:01:14]}  Qh5 {[%clk 0:01:32]} 26. Rxf7 {[%clk 0:01:02]}  Rxf7 {[%clk 0:01:07]} 27. Bxf7 {[%clk 0:01:03]}  Qe5 {[%clk 0:01:06]} 28. Qf3 {[%clk 0:00:50]}  Bh6 {[%clk 0:00:59]} 29. Nc2 {[%clk 0:00:21]}  Qf5 {[%clk 0:00:47]} 30. Bd5 {[%clk 0:00:17]}  c6 {[%clk 0:00:23]} 31. Be4 {[%clk 0:00:16]}  Qxf3 {[%clk 0:00:22]} 32. Bxf3 {[%clk 0:00:15]}  Bf5 {[%clk 0:00:22]} 33. e4 {[%clk 0:00:13]}  Bc8 {[%clk 0:00:20]} 34. Kg1 {[%clk 0:00:13]}  Kg7 {[%clk 0:00:19]} 35. Kf2 {[%clk 0:00:13]}  Kf6 {[%clk 0:00:20]} 36. Ne3 {[%clk 0:00:11]}  Ke5 {[%clk 0:00:18]} 37. Nc4+ {[%clk 0:00:08]}  Kd4 {[%clk 0:00:18]} 38. Nd6 {[%clk 0:00:09]}  Be6 {[%clk 0:00:18]} 39. Nxb7 {[%clk 0:00:08]}  Kc4 {[%clk 0:00:14]} 40. Nd8 {[%clk 0:00:08]}  Bd7 {[%clk 0:00:12]} 41. e5 {[%clk 0:00:08]}  Kxb4 {[%clk 0:00:10]} 42. e6 {[%clk 0:00:08]}  Be8 {[%clk 0:00:09]} 43. Bxc6 {[%clk 0:00:06]}  Kxc5 {[%clk 0:00:03]} 44. Bxe8 {[%clk 0:00:06]}  Kd6 {[%clk 0:00:04]} 45. Bd7 {[%clk 0:00:06]}  Ke7 {[%clk 0:00:01]} 46. Nc6+ {[%clk 0:00:04]}  Kd6 {[%clk 0:00:01]} 47. Nd4 {[%clk 0:00:03]}  Be3+ {[%clk 0:00:02]} 48. Kxe3 {[%clk 0:00:02]}  Ke7 {[%clk 0:00:03]} 49. Ke4 {[%clk 0:00:02]}  Kd6 {[%clk 0:00:04]} 50. Nb5+ {[%clk 0:00:03]}  Ke7 {[%clk 0:00:05]} 51. Ke5 {[%clk 0:00:04]}  g5 {[%clk 0:00:05]} 52. Nd4 {[%clk 0:00:03]}  h6 {[%clk 0:00:06]} 53. Nc6+ {[%clk 0:00:04]}  Kf8 {[%clk 0:00:06]} 54. Kf6 {[%clk 0:00:05]}  g4 {[%clk 0:00:05]} 55. e7+ {[%clk 0:00:06]}  Kg8 {[%clk 0:00:06]} 56. e8=Q+ {[%clk 0:00:06]}  Kh7 {[%clk 0:00:07]} 57. Bf5# {[%clk 0:00:06]} 1-0


[Site "https://www.chess.com"]

[Event "Titled Tuesday Blitz March 28 Early 2023"]
[White "Ljukin, Sergei"]
[Black "Fernandez Sanchez, Mario Andres"]
[WhiteFideId "14102200"]
[BlackFideId "6501621"]
[WhiteElo "2312"]
[BlackElo "2050"]
[Result "0-1"]
[Round "04"]
[TimeControl "180+2"]
[Date "2023.03.28"]
[WhiteClock "0:00:01"]
[BlackClock "0:00:42"]

1. e4 {[%clk 0:02:30]}  c6 {[%clk 0:02:58]} 2. d4 {[%clk 0:02:30]}  d5 {[%clk 0:02:59]} 3. e5 {[%clk 0:02:30]}  c5 {[%clk 0:02:59]} 4. Nf3 {[%clk 0:02:29]}  Nc6 {[%clk 0:02:58]} 5. c4 {[%clk 0:02:29]}  cxd4 {[%clk 0:02:52]} 6. Nxd4 {[%clk 0:02:29]}  e6 {[%clk 0:02:49]} 7. Nc3 {[%clk 0:02:28]}  Nge7 {[%clk 0:02:47]} 8. cxd5 {[%clk 0:02:23]}  Nxd5 {[%clk 0:02:39]} 9. Nxc6 {[%clk 0:02:22]}  bxc6 {[%clk 0:02:38]} 10. Be2 {[%clk 0:02:16]}  Bb4 {[%clk 0:02:37]} 11. Bd2 {[%clk 0:02:16]}  O-O {[%clk 0:02:36]} 12. O-O {[%clk 0:02:16]}  a5 {[%clk 0:02:35]} 13. a3 {[%clk 0:02:12]}  Nxc3 {[%clk 0:02:35]} 14. bxc3 {[%clk 0:02:08]}  Bc5 {[%clk 0:02:33]} 15. Qc2 {[%clk 0:01:50]}  Ba6 {[%clk 0:02:27]} 16. c4 {[%clk 0:01:50]}  Qe7 {[%clk 0:02:15]} 17. a4 {[%clk 0:01:17]}  Bd4 {[%clk 0:02:03]} 18. Rab1 {[%clk 0:01:12]}  Qc5 {[%clk 0:02:02]} 19. Qe4 {[%clk 0:00:35]}  Bxc4 {[%clk 0:01:48]} 20. Rbc1 {[%clk 0:00:35]}  Qd5 {[%clk 0:01:45]} 21. Qg4 {[%clk 0:00:14]}  Bxe2 {[%clk 0:01:42]} 22. Qxe2 {[%clk 0:00:14]}  c5 {[%clk 0:01:32]} 23. Bf4 {[%clk 0:00:13]}  Rab8 {[%clk 0:01:25]} 24. Qg4 {[%clk 0:00:10]}  Rb4 {[%clk 0:01:17]} 25. Qg3 {[%clk 0:00:10]}  Rxa4 {[%clk 0:01:06]} 26. Rce1 {[%clk 0:00:09]}  f6 {[%clk 0:00:47]} 27. exf6 {[%clk 0:00:03]}  Rxf6 {[%clk 0:00:48]} 28. Bg5 {[%clk 0:00:03]}  Rf5 {[%clk 0:00:41]} 29. Qb8+ {[%clk 0:00:01]}  Kf7 {[%clk 0:00:42]} 0-1


[Site "https://www.chess.com"]